bitfinex/quotes_BTCUSD_20241028
["timestamp","ask_amount","ask_price","bid_price","bid_amount"]
[1730148466730,0.0013772,69563.0,69562.0,0.00436348]
[1730148468098,0.0013772,69563.0,69562.0,0.14811948]
[1730148468314,0.0013772,69563.0,69562.0,0.25748744]
[1730148470587,0.0013772,69563.0,69562.0,0.00436348]
[1730148471695,0.0013772,69563.0,69562.0,0.14811948]
[1730148472145,0.0013772,69563.0,69562.0,0.00436348]
[1730148474668,0.0013772,69563.0,69562.0,0.14811948]
[1730148474886,0.0013172,69563.0,69562.0,0.14811948]
[1730148476218,0.0012572,69563.0,69562.0,0.14811948]
[1730148476978,0.0011972,69563.0,69562.0,0.00436348]
[1730148478202,0.0011972,69563.0,69562.0,0.00343858]
[1730148478421,0.0009693,69563.0,69562.0,0.00343858]
[1730148479316,0.0009693,69563.0,69562.0,0.14719458]
[1730148479550,0.00033169,69563.0,69562.0,0.14719458]
[1730148481497,0.0835193,69569.0,69565.0,0.143749]
[1730148481706,0.01074375,69568.0,69565.0,0.143749]
[1730148481919,0.01074375,69567.0,69566.0,0.00364312]
[1730148482131,0.01074375,69567.0,69563.0,0.287508]
[1730148482349,0.0835193,69569.0,69564.0,0.14739719]
[1730148482560,0.0107507,69568.0,69564.0,0.14739719]
[1730148482767,0.0107507,69567.0,69565.0,0.001]
[1730148482996,0.0835193,69569.0,69566.0,0.00364312]
[1730148483222,0.01075074,69568.0,69566.0,0.00364312]
[1730148483456,0.01075074,69567.0,69566.0,0.143748]
[1730148483664,0.01075074,69567.0,69564.0,0.14475]
[1730148483879,0.0835193,69569.0,69564.0,0.001]
[1730148484112,0.0835193,69569.0,69566.0,0.002]
[1730148484113,0.07525497,69568.0,69566.0,0.002]
[1730148484318,0.01075229,69567.0,69566.0,0.002]
[1730148484549,0.07525497,69567.0,69566.0,0.002]
[1730148484751,0.07525497,69567.0,69564.0,0.14375]
[1730148484963,0.0430094,69565.0,69564.0,0.14375]
[1730148485840,0.0430094,69565.0,69564.0,0.14739519]
[1730148486289,0.0430094,69565.0,69564.0,0.15039519]
[1730148486712,0.0430094,69565.0,69564.0,0.00364519]
[1730148487145,0.0430094,69565.0,69564.0,0.00664519]
[1730148487383,0.0430094,69565.0,69564.0,0.00864519]
[1730148487583,0.0430094,69565.0,69564.0,0.15239719]
[1730148488222,0.06450268,69566.0,69564.0,0.15239719]
[1730148488489,0.06450268,69566.0,69564.0,0.00564519]
[1730148488944,0.06450268,69566.0,69565.0,0.14375]
[1730148489164,0.06450268,69566.0,69565.0,0.00364416]
[1730148490035,0.06450268,69566.0,69565.0,0.00564416]
[1730148491338,0.06451389,69566.0,69565.0,0.00564416]
[1730148491544,0.24478323,69566.0,69565.0,0.00564416]
[1730148492180,0.24478323,69566.0,69565.0,0.00664416]
[1730148495083,0.24478323,69566.0,69565.0,0.003]
[1730148495724,0.24478323,69566.0,69565.0,0.00664416]
[1730148496200,0.24476363,69566.0,69565.0,0.00664416]
[1730148498140,0.24476363,69566.0,69565.0,0.003]
[1730148498554,0.24476363,69566.0,69565.0,0.00664482]
[1730148499631,0.24476363,69566.0,69565.0,0.003]
[1730148500072,0.06450619,69567.0,69563.0,0.143754]
[1730148500301,0.04300412,69565.0,69563.0,0.143754]
[1730148500516,0.04300412,69565.0,69561.0,0.431275]
[1730148500720,0.04300433,69565.0,69562.0,0.143755]
[1730148501128,0.04300433,69565.0,69563.0,0.00464689]
[1730148501582,0.04300433,69565.0,69563.0,0.00364689]
[1730148502856,0.04300433,69565.0,69561.0,0.143757]
[1730148503058,0.04300433,69565.0,69564.0,0.00364585]
[1730148503267,0.04300433,69565.0,69560.0,0.487519]
[1730148503485,0.04300433,69565.0,69564.0,0.00364585]
[1730148503686,0.04300433,69565.0,69561.0,0.143758]
[1730148503916,0.04300433,69565.0,69564.0,0.00364585]
[1730148504553,0.04300433,69565.0,69561.0,0.143758]
[1730148504760,0.04300433,69565.0,69564.0,0.004]
[1730148504968,0.04300433,69565.0,69564.0,0.00764585]
[1730148505400,0.04300433,69565.0,69564.0,0.00564585]
[1730148506613,0.04300433,69565.0,69564.0,0.00364585]
[1730148506973,0.04300433,69565.0,69561.0,0.002]
[1730148507188,0.04300433,69565.0,69564.0,0.002]
[1730148507391,0.04300433,69565.0,69564.0,0.00564585]
[1730148508022,0.04300433,69565.0,69564.0,0.00764585]
[1730148508436,0.04300433,69565.0,69564.0,0.00564585]
[1730148509321,0.04300433,69565.0,69561.0,0.289515]
[1730148509548,0.04300433,69565.0,69562.0,0.143755]
[1730148509767,0.04300433,69565.0,69563.0,0.003909]
[1730148509993,0.0851693,69569.0,69563.0,0.003909]
[1730148510213,0.0430023,69565.0,69563.0,0.003909]
[1730148510464,0.0430023,69564.0,69563.0,0.003909]
[1730148510667,0.0430023,69564.0,69560.0,0.34376]
[1730148510897,0.0430023,69564.0,69563.0,0.0045605]
[1730148511126,0.0430023,69564.0,69561.0,0.145757]
[1730148511333,0.0430023,69564.0,69563.0,0.003909]
[1730148511790,0.0430023,69564.0,69563.0,0.003]
[1730148512006,0.0430023,69564.0,69563.0,0.006909]
[1730148512213,0.0430023,69564.0,69563.0,0.003]
[1730148512431,0.0430023,69564.0,69563.0,0.006909]
[1730148512674,0.0430023,69564.0,69563.0,0.146754]
[1730148512939,0.0430023,69564.0,69563.0,0.006909]
[1730148513565,0.0430023,69564.0,69563.0,0.009909]
[1730148514275,0.3644543,69564.0,69563.0,0.009909]
[1730148514497,0.8981914,69564.0,69563.0,0.009909]
[1730148514719,0.8981914,69564.0,69563.0,0.006]
[1730148514720,1.14821026,69564.0,69563.0,0.006]
[1730148514938,0.97768762,69564.0,69563.0,0.006]
[1730148515415,0.450358,69561.0,69560.0,0.106]
[1730148515639,1.01592379,69561.0,69560.0,0.106]
[1730148516335,1.00516256,69561.0,69560.0,0.106]
[1730148517429,1.01816256,69561.0,69560.0,0.107]
[1730148517643,1.02916256,69561.0,69560.0,0.108]
[1730148519412,1.02882501,69561.0,69560.0,0.108]
[1730148519637,0.88553287,69561.0,69560.0,0.108]
[1730148521197,0.63282964,69561.0,69560.0,0.108]
[1730148521452,0.74011129,69561.0,69560.0,0.108]
[1730148521652,0.63282964,69561.0,69560.0,0.108]
[1730148522072,0.62782964,69561.0,69560.0,0.108]
[1730148522292,0.469358,69561.0,69560.0,0.108]
[1730148522740,0.53369911,69561.0,69560.0,0.108]
[1730148522966,0.53869911,69561.0,69560.0,0.108]
[1730148523182,0.450358,69561.0,69560.0,0.106]
[1730148523400,0.52770161,69561.0,69560.0,0.107]
[1730148523617,0.53870161,69561.0,69560.0,0.108]
[1730148523827,0.52569811,69561.0,69560.0,0.107]
[1730148524248,0.52569811,69561.0,69560.0,0.107825]
[1730148524720,1.14702973,69561.0,69560.0,0.108825]
[1730148524938,1.13400702,69561.0,69560.0,0.108825]
[1730148525153,1.05893973,69561.0,69560.0,0.108825]
[1730148525399,1.05893973,69561.0,69548.0,0.000825]
[1730148525400,0.143783,69549.0,69548.0,0.000825]
[1730148525611,0.166783,69549.0,69548.0,0.000825]
[1730148526534,0.02753329,69552.0,69548.0,0.001825]
[1730148526535,0.166781,69550.0,69548.0,0.001825]
[1730148526736,0.023,69551.0,69548.0,0.002825]
[1730148526959,0.023,69549.0,69548.0,0.002825]
[1730148527172,0.166783,69549.0,69548.0,0.002825]
[1730148527390,0.166783,69549.0,69539.0,0.00965975]
[1730148527621,0.166783,69549.0,69540.0,0.14810539]
[1730148528062,0.166783,69549.0,69541.0,0.143799]
[1730148528279,0.166783,69549.0,69541.0,0.14810102]
[1730148529186,0.023,69551.0,69542.0,0.143797]
[1730148529413,0.025,69549.0,69543.0,0.00429926]
[1730148529638,0.024,69549.0,69543.0,0.00429926]
[1730148529882,0.023,69549.0,69543.0,0.00429926]
[1730148530108,0.024,69549.0,69543.0,0.00429926]
[1730148530337,0.025,69549.0,69543.0,0.00429926]
[1730148530776,0.023,69549.0,69543.0,0.00429926]
[1730148531001,0.024,69549.0,69543.0,0.00429926]
[1730148531239,0.025,69549.0,69541.0,0.143799]
[1730148531461,0.025,69549.0,69544.0,0.00433526]
[1730148531687,0.025,69549.0,69541.0,0.143799]
[1730148531688,0.168783,69549.0,69541.0,0.143799]
[1730148531900,0.168783,69549.0,69545.0,0.00433389]
[1730148532120,0.168783,69549.0,69541.0,0.143799]
[1730148532376,0.166783,69549.0,69546.0,0.00433251]
[1730148532617,0.001,69549.0,69547.0,0.00433113]
[1730148532837,0.002,69549.0,69548.0,0.143785]
[1730148533063,0.001,69549.0,69548.0,0.14811475]
[1730148533935,0.002,69549.0,69548.0,0.14811475]
[1730148534151,0.001,69549.0,69548.0,0.00432975]
[1730148534830,0.001,69549.0,69545.0,0.143791]
[1730148535511,0.002,69549.0,69546.0,0.143789]
[1730148535739,0.001,69549.0,69546.0,0.143789]
[1730148535967,0.143773,69554.0,69546.0,0.143789]
[1730148536181,0.001,69549.0,69546.0,0.143789]
[1730148536607,0.002,69549.0,69546.0,0.143789]
[1730148536818,0.001,69549.0,69546.0,0.143789]
[1730148537043,0.001,69549.0,69546.0,0.144789]
[1730148538543,0.001,69549.0,69546.0,0.001]
[1730148538756,0.001,69549.0,69546.0,0.144789]
[1730148538998,0.001,69549.0,69546.0,0.143789]
[1730148539413,0.002,69549.0,69546.0,0.143789]
[1730148541179,0.002,69549.0,69545.0,0.000825]
[1730148542282,0.001,69549.0,69545.0,0.000825]
[1730148542921,0.002,69549.0,69545.0,0.39777596]
[1730148543147,0.002,69549.0,69545.0,0.25398296]
[1730148543578,0.002,69549.0,69545.0,0.39777596]
[1730148543793,0.002,69549.0,69546.0,0.143787]
[1730148544227,0.01075392,69548.0,69545.0,0.39777596]
[1730148544450,0.01075392,69547.0,69546.0,0.143789]
[1730148546009,0.01075392,69547.0,69546.0,0.00372186]
[1730148546214,0.01075392,69547.0,69546.0,0.00472186]
[1730148546640,0.01075392,69547.0,69546.0,0.00572186]
[1730148550636,0.25304092,69547.0,69546.0,0.00572186]
[1730148550857,0.27604092,69547.0,69546.0,0.002]
[1730148551077,0.28104092,69547.0,69546.0,0.002]
[1730148551331,0.60037619,69547.0,69546.0,0.002]
[1730148551576,0.66466451,69547.0,69546.0,0.002]
[1730148552028,0.66466451,69547.0,69546.0,0.001]
[1730148552465,0.66866451,69547.0,69546.0,0.001]
[1730148552907,0.171789,69546.0,69545.0,0.000825]
[1730148553136,0.32587819,69546.0,69545.0,0.000825]
[1730148554216,0.56994248,69546.0,69545.0,0.000825]
[1730148554445,0.66994248,69546.0,69545.0,0.000825]
[1730148554658,0.67694248,69546.0,69545.0,0.001825]
[1730148554875,0.68504293,69546.0,69545.0,0.002825]
[1730148555535,0.59924173,69546.0,69545.0,0.002825]
[1730148555768,0.143804,69539.0,69533.0,0.21533625]
[1730148555992,0.03375392,69538.0,69533.0,0.21533625]
[1730148556218,0.03375392,69538.0,69530.0,0.288467]
[1730148556219,0.023,69539.0,69534.0,0.0037642]
[1730148556440,0.01074104,69538.0,69534.0,0.0037642]
[1730148556689,0.15454704,69538.0,69535.0,0.00376301]
[1730148556909,0.023,69539.0,69535.0,0.00376301]
[1730148557127,0.01074231,69538.0,69530.0,0.000825]
[1730148557336,0.01074231,69538.0,69531.0,0.14758595]
[1730148557550,0.01074231,69538.0,69534.0,0.001]
[1730148557758,0.166805,69539.0,69532.0,0.14758377]
[1730148557974,0.166805,69539.0,69535.0,0.00376323]
[1730148558186,0.166805,69539.0,69532.0,0.143817]
[1730148558621,0.143807,69538.0,69533.0,0.00376559]
[1730148559064,0.143807,69538.0,69531.0,0.001]
[1730148559065,0.143807,69538.0,69534.0,0.00426437]
[1730148559298,0.143807,69538.0,69531.0,0.143819]
[1730148559515,0.18671287,69538.0,69535.0,0.00426299]
[1730148559729,0.18671287,69538.0,69531.0,0.143819]
[1730148559730,0.18671287,69538.0,69534.0,0.001]
[1730148559947,0.18671287,69538.0,69536.0,0.00426162]
[1730148560164,0.18671287,69538.0,69535.0,0.00426299]
[1730148560387,0.166807,69538.0,69537.0,0.00426024]
[1730148560610,0.166807,69538.0,69530.0,0.288466]
[1730148560611,0.143808,69537.0,69536.0,0.00426162]
[1730148560850,0.15700587,69538.0,69535.0,0.001]
[1730148561375,0.143808,69537.0,69530.0,0.141646]
[1730148561847,0.143808,69537.0,69535.0,0.000825]
[1730148562255,0.143808,69537.0,69535.0,0.001825]
[1730148562700,0.15700587,69538.0,69536.0,0.002]
[1730148562922,0.30081287,69538.0,69536.0,0.002]
[1730148563177,0.30081287,69538.0,69535.0,0.001825]
[1730148563423,0.30081287,69538.0,69535.0,0.003825]
[1730148563651,0.0806,69537.0,69535.0,0.000825]
[1730148563882,0.0806,69537.0,69535.0,0.002825]
[1730148564322,0.0806,69537.0,69535.0,0.000825]
[1730148564561,0.30081287,69538.0,69535.0,0.000825]
[1730148565424,0.30081287,69538.0,69535.0,0.001825]
[1730148565649,0.258907,69538.0,69535.0,0.001825]
[1730148565851,0.35914425,69537.0,69535.0,0.001825]
[1730148566069,0.143808,69537.0,69535.0,0.001825]
[1730148566740,0.1141,69538.0,69535.0,0.001825]
[1730148566741,0.257906,69538.0,69535.0,0.001825]
[1730148567188,0.262906,69538.0,69529.0,0.000825]
[1730148567625,0.262906,69538.0,69531.0,0.14382]
[1730148568080,0.262906,69538.0,69532.0,0.00429389]
[1730148568327,0.266906,69538.0,69532.0,0.00429389]
[1730148568565,0.261906,69538.0,69532.0,0.00429389]
[1730148568783,0.257906,69538.0,69532.0,0.00429389]
[1730148569008,0.262906,69538.0,69532.0,0.00429389]
[1730148569214,0.261906,69538.0,69532.0,0.00429389]
[1730148569424,0.266906,69538.0,69532.0,0.00429389]
[1730148570093,0.1231,69538.0,69532.0,0.00429389]
[1730148570319,0.1191,69538.0,69532.0,0.00429389]
[1730148570755,0.1231,69538.0,69532.0,0.00429389]
[1730148573608,0.1231,69538.0,69532.0,0.00511889]
[1730148576413,0.0107502,69537.0,69532.0,0.00511889]
[1730148576640,0.1231,69538.0,69532.0,0.00511889]
[1730148576850,0.01075111,69537.0,69532.0,0.00511889]
[1730148577531,0.01475111,69537.0,69532.0,0.00511889]
[1730148577760,0.007,69537.0,69532.0,0.00511889]
[1730148578398,0.150809,69537.0,69532.0,0.00511889]
[1730148578657,0.01075611,69536.0,69532.0,0.14893689]
[1730148579325,0.003,69537.0,69532.0,0.14893689]
[1730148579539,0.01075965,69536.0,69530.0,0.287642]
[1730148579754,0.003,69536.0,69531.0,0.14774992]
[1730148580410,0.01076546,69535.0,69531.0,0.14774992]
[1730148580612,0.01076546,69534.0,69531.0,0.14774992]
[1730148580831,0.1141,69538.0,69531.0,0.14774992]
[1730148581046,0.002,69536.0,69531.0,0.14774992]
[1730148581256,0.01076556,69535.0,69531.0,0.14774992]
[1730148581473,0.01076556,69534.0,69531.0,0.14774992]
[1730148581699,0.01076556,69533.0,69531.0,0.14774992]
[1730148581912,0.003,69536.0,69531.0,0.14774992]
[1730148582127,0.01077171,69535.0,69531.0,0.14774992]
[1730148582349,0.01077171,69534.0,69531.0,0.14774992]
[1730148582557,0.01077171,69533.0,69531.0,0.14774992]
[1730148582795,0.023,69537.0,69531.0,0.14774992]
[1730148583055,0.01077238,69536.0,69531.0,0.14774992]
[1730148583263,0.01077238,69535.0,69531.0,0.14774992]
[1730148583479,0.01177238,69534.0,69531.0,0.14774992]
[1730148583738,0.01077238,69533.0,69531.0,0.14774992]
[1730148583958,0.023,69537.0,69531.0,0.00393092]
[1730148584163,0.01577257,69536.0,69531.0,0.14382]
[1730148584377,0.01577257,69536.0,69532.0,0.00392954]
[1730148584598,0.01077116,69535.0,69532.0,0.00392954]
[1730148584810,0.01077116,69534.0,69532.0,0.00392954]
[1730148585057,0.01077116,69533.0,69532.0,0.14774754]
[1730148586166,0.01077116,69533.0,69531.0,0.000825]
[1730148586415,0.003,69536.0,69532.0,0.00360208]
[1730148586641,0.001,69534.0,69532.0,0.00360208]
[1730148586879,0.01077043,69533.0,69532.0,0.00360208]
[1730148587303,0.01077043,69533.0,69532.0,0.00460208]
[1730148587528,0.01077043,69533.0,69532.0,0.00360208]
[1730148588510,0.23833625,69537.0,69532.0,0.00360208]
[1730148588758,0.01077028,69533.0,69532.0,0.00360208]
[1730148588983,0.23833625,69537.0,69532.0,0.00360208]
[1730148589198,0.01076991,69536.0,69532.0,0.00360208]
[1730148589416,0.01076991,69535.0,69532.0,0.00360208]
[1730148589634,0.01076991,69534.0,69532.0,0.00560208]
[1730148589860,0.01076991,69533.0,69532.0,0.00460208]
[1730148590107,0.01076991,69533.0,69532.0,0.00360208]
[1730148591215,0.01076991,69533.0,69532.0,0.00460208]
[1730148591465,0.01076991,69533.0,69532.0,0.00560208]
[1730148593033,0.00576991,69533.0,69532.0,0.00560208]
[1730148594145,0.04300682,69536.0,69532.0,0.00560208]
[1730148594368,0.04300682,69535.0,69532.0,0.00560208]
[1730148595527,0.04300682,69534.0,69532.0,0.00560208]
[1730148595730,0.04300682,69534.0,69533.0,0.143816]
[1730148595943,0.06451023,69537.0,69532.0,0.11497004]
[1730148595944,0.04300682,69537.0,69536.0,0.14381]
[1730148596402,0.00165,69538.0,69537.0,0.143808]
[1730148596651,0.06616023,69538.0,69537.0,0.143808]
[1730148596880,0.06616023,69538.0,69537.0,0.1474149]
[1730148597541,0.06616023,69538.0,69537.0,0.0046069]
[1730148598483,0.00165,69538.0,69537.0,0.00330633]
[1730148598913,0.00165,69538.0,69535.0,0.143811]
[1730148599155,0.00165,69538.0,69537.0,0.00330633]
[1730148599356,0.00165,69538.0,69537.0,0.001]
[1730148599558,0.00165,69538.0,69537.0,0.00430633]
[1730148599977,0.00165,69538.0,69537.0,0.00330633]
[1730148600187,0.00165,69538.0,69535.0,0.001]
[1730148600454,0.00165,69538.0,69537.0,0.00330633]
[1730148600683,0.00165,69538.0,69536.0,0.00330771]
[1730148600906,0.00165,69538.0,69537.0,0.00330633]
[1730148601119,0.00165,69538.0,69537.0,0.00430633]
[1730148601323,0.00165,69538.0,69537.0,0.001]
[1730148601534,0.00165,69538.0,69537.0,0.00429806]
[1730148601736,0.00165,69538.0,69537.0,0.001]
[1730148601943,0.00165,69538.0,69537.0,0.00429806]
[1730148602308,0.00165,69538.0,69537.0,0.00329806]
[1730148602520,0.00165,69538.0,69535.0,0.001]
[1730148602897,0.00165,69538.0,69536.0,0.00429943]
[1730148603572,0.00165,69538.0,69537.0,0.144808]
[1730148603806,0.00165,69538.0,69537.0,0.001]
[1730148604044,0.00165,69538.0,69537.0,0.14710606]
[1730148604287,0.00165,69538.0,69537.0,0.00329806]
[1730148606159,0.00165,69538.0,69537.0,0.00429806]
[1730148606370,0.00165,69538.0,69535.0,0.25317996]
[1730148606596,0.00165,69538.0,69537.0,0.001]
[1730148607397,0.00165,69538.0,69535.0,0.25317996]
[1730148607632,0.00165,69538.0,69535.0,0.25517996]
[1730148608014,0.09635,69540.0,69539.0,0.325404]
[1730148608280,0.09635,69540.0,69539.0,0.46873927]
[1730148608515,0.05736736,69540.0,69539.0,0.46873927]
[1730148610309,0.05836736,69540.0,69539.0,0.47973927]
[1730148610514,0.06101736,69540.0,69539.0,0.48873927]
[1730148611864,0.06101736,69540.0,69539.0,0.48373927]
[1730148612188,0.06101736,69540.0,69539.0,0.59310723]
[1730148614102,0.06101736,69540.0,69539.0,0.30713927]
[1730148614361,0.06101736,69540.0,69539.0,0.41650723]
[1730148619869,0.06101736,69540.0,69539.0,0.30713927]
[1730148620079,0.06101736,69540.0,69539.0,0.41650723]
[1730148620732,0.06101736,69540.0,69539.0,0.30713927]
[1730148623400,0.06101736,69540.0,69539.0,0.38493927]
[1730148628952,0.06101736,69540.0,69539.0,0.49430723]
[1730148630707,0.06101736,69540.0,69539.0,0.49930723]
[1730148631866,0.06101736,69540.0,69539.0,0.50230672]
[1730148632108,0.00165,69546.0,69545.0,0.36752692]
[1730148632362,0.21698625,69551.0,69550.0,0.36751692]
[1730148632581,0.21698625,69551.0,69550.0,0.51085219]
[1730148633066,0.00165,69551.0,69550.0,0.51382501]
[1730148633754,0.00265,69551.0,69550.0,0.52382501]
[1730148633982,0.00365,69551.0,69550.0,0.53582501]
[1730148641185,0.00365,69551.0,69550.0,0.54502654]
[1730148641965,0.00365,69551.0,69550.0,0.32129062]
[1730148642182,0.00365,69551.0,69550.0,0.43065858]
[1730148644586,0.00365,69551.0,69550.0,0.32129062]
[1730148644805,0.00365,69551.0,69550.0,0.28732331]
[1730148661932,0.00365,69551.0,69550.0,0.32129062]
[1730148662192,0.00365,69551.0,69550.0,0.6543945]
[1730148662419,0.00365,69551.0,69550.0,0.54502654]
[1730148662632,0.00365,69551.0,69550.0,0.54002654]
[1730148662841,0.00365,69551.0,69550.0,0.43065858]
[1730148664155,0.00365,69551.0,69550.0,0.42145705]
[1730148664575,0.00365,69551.0,69550.0,0.27812178]
[1730148665623,0.00365,69551.0,69550.0,0.28099711]
[1730148667740,0.00365,69551.0,69550.0,0.27812178]
[1730148669047,0.10295,69551.0,69550.0,0.27812178]
[1730148670595,0.10295,69551.0,69550.0,0.02497282]
[1730148670596,0.18255,69551.0,69550.0,0.02497282]
[1730148670850,0.326329,69551.0,69550.0,0.02497282]
[1730148671736,0.18255,69551.0,69550.0,0.02497282]
[1730148671946,0.326329,69551.0,69550.0,0.022]
[1730148672180,0.326329,69551.0,69550.0,0.02495381]
[1730148672181,0.18255,69551.0,69550.0,0.02495381]
[1730148673723,0.18255,69551.0,69550.0,0.02628828]
[1730148674189,0.18255,69551.0,69550.0,0.27943724]
[1730148674405,0.10295,69551.0,69550.0,0.27943724]
[1730148675780,0.10295,69551.0,69550.0,0.02628828]
[1730148675993,0.326529,69551.0,69550.0,0.02628828]
[1730148676217,0.326529,69551.0,69550.0,0.022]
[1730148676872,0.18275,69551.0,69550.0,0.022]
[1730148677085,0.18275,69551.0,69550.0,0.02628712]
[1730148677235,0.22582071,69551.0,69550.0,0.02628712]
[1730148677447,0.18275,69551.0,69550.0,0.02628712]
[1730148680156,0.18275,69551.0,69550.0,0.022]
[1730148680364,0.18275,69551.0,69550.0,0.02628712]
[1730148680593,0.326529,69551.0,69550.0,0.02628712]
[1730148681027,0.326529,69551.0,69550.0,0.022]
[1730148682272,0.326529,69551.0,69550.0,0.02629545]
[1730148682477,0.18275,69551.0,69550.0,0.02629545]
[1730148682651,0.326529,69551.0,69550.0,0.02629545]
[1730148683296,0.18275,69551.0,69550.0,0.02629545]
[1730148683496,0.326529,69551.0,69550.0,0.02629545]
[1730148693047,0.326529,69551.0,69550.0,0.022]
[1730148695679,0.326529,69551.0,69550.0,0.02654673]
[1730148699083,0.36956521,69551.0,69550.0,0.02654673]
[1730148699316,0.326529,69551.0,69550.0,0.02654673]
[1730148699548,0.326529,69551.0,69550.0,0.022]
[1730148701264,0.36956521,69551.0,69550.0,0.022]
[1730148703901,0.36956521,69551.0,69550.0,0.02654565]
[1730148704538,0.36956521,69551.0,69550.0,0.022]
[1730148707223,0.38034308,69551.0,69550.0,0.022]
[1730148707677,0.66753005,69551.0,69550.0,0.022]
[1730148707894,0.71241886,69551.0,69550.0,0.022]
[1730148708344,0.70064099,69551.0,69550.0,0.01]
[1730148708551,0.143787,69547.0,69546.0,0.000825]
[1730148708775,0.52986937,69547.0,69546.0,0.000825]
[1730148709413,0.52985141,69547.0,69546.0,0.000825]
[1730148710087,0.52985141,69547.0,69546.0,0.008825]
[1730148710540,0.52985141,69547.0,69546.0,0.015825]
[1730148711705,0.263387,69547.0,69546.0,0.015825]
[1730148711926,0.32794323,69547.0,69546.0,0.015825]
[1730148712135,0.263387,69547.0,69546.0,0.015825]
[1730148712558,0.32793954,69547.0,69546.0,0.015825]
[1730148713689,0.42225247,69547.0,69546.0,0.015825]
[1730148713946,0.50831842,69547.0,69546.0,0.015825]
[1730148715987,0.42225247,69547.0,69546.0,0.015825]
[1730148720757,0.50831232,69547.0,69546.0,0.015825]
[1730148725953,0.42225247,69547.0,69546.0,0.0133742]
[1730148726419,0.78592399,69547.0,69546.0,0.0133742]
[1730148726641,0.96705016,69547.0,69546.0,0.0133742]
[1730148726884,0.8594557,69547.0,69546.0,0.0133742]
[1730148727116,0.90429403,69547.0,69546.0,0.0141992]
[1730148727368,0.90594403,69547.0,69546.0,0.0141992]
[1730148727834,0.90594403,69547.0,69546.0,0.0071992]
[1730148728068,0.91594403,69547.0,69546.0,0.000825]
[1730148728308,0.91994403,69547.0,69546.0,0.000825]
[1730148728525,0.8751057,69547.0,69546.0,0.000825]
[1730148728955,0.87509996,69547.0,69546.0,0.000825]
[1730148731282,0.89763531,69547.0,69546.0,0.000825]
[1730148734278,0.89963531,69547.0,69546.0,0.000825]
[1730148734499,0.89763531,69547.0,69546.0,0.000825]
[1730148734731,0.89963531,69547.0,69546.0,0.000825]
[1730148735880,0.262902,69540.0,69539.0,0.000825]
[1730148736113,0.42176173,69540.0,69539.0,0.000825]
[1730148737239,0.42176173,69540.0,69539.0,0.004825]
[1730148737758,0.99161103,69540.0,69539.0,0.004825]
[1730148738000,1.0056571,69540.0,69539.0,0.004825]
[1730148738214,1.17954251,69540.0,69539.0,0.004825]
[1730148738456,1.05043746,69540.0,69539.0,0.005825]
[1730148738698,1.17930286,69540.0,69539.0,0.000825]
[1730148738936,1.18830286,69540.0,69539.0,0.001825]
[1730148739158,1.18230286,69540.0,69539.0,0.000825]
[1730148739612,1.18930286,69540.0,69539.0,0.001825]
[1730148740118,1.18630286,69540.0,69539.0,0.001825]
[1730148740373,1.18930286,69540.0,69539.0,0.002825]
[1730148740611,1.18924774,69540.0,69539.0,0.002825]
[1730148741486,1.06043746,69540.0,69539.0,0.002825]
[1730148741724,1.06243746,69540.0,69539.0,0.002825]
[1730148742155,1.08497619,69540.0,69539.0,0.002825]
[1730148743316,1.08297619,69540.0,69539.0,0.002825]
[1730148743981,1.08497619,69540.0,69539.0,0.002825]
[1730148745868,1.06243746,69540.0,69539.0,0.002825]
[1730148749433,1.33389478,69540.0,69539.0,0.002825]
[1730148750061,1.20198744,69540.0,69539.0,0.002825]
[1730148750271,1.19898744,69540.0,69539.0,0.001825]
[1730148750528,1.19898744,69540.0,69539.0,0.002825]
[1730148750529,1.20198744,69540.0,69539.0,0.002825]
[1730148750748,1.20198744,69540.0,69529.0,0.000825]
[1730148750749,0.005,69530.0,69529.0,0.000825]
[1730148750952,0.37954689,69530.0,69529.0,0.000825]
[1730148751160,0.39028659,69530.0,69529.0,0.000825]
[1730148751596,0.41282719,69530.0,69529.0,0.000825]
[1730148752467,0.50689776,69530.0,69529.0,0.000825]
[1730148752713,0.60239776,69530.0,69529.0,0.000825]
[1730148752919,0.60939776,69530.0,69529.0,0.001825]
[1730148753151,0.61639776,69530.0,69529.0,0.002825]
[1730148753375,0.80225058,69530.0,69529.0,0.002825]
[1730148753592,0.80233769,69530.0,69529.0,0.002825]
[1730148754237,0.79159799,69530.0,69529.0,0.002825]
[1730148754455,0.80234347,69530.0,69529.0,0.002825]
[1730148754671,1.05751966,69530.0,69529.0,0.002825]
[1730148755111,1.1022776,69530.0,69529.0,0.002825]
[1730148755332,1.079737,69530.0,69529.0,0.002825]
[1730148755574,1.06899152,69530.0,69529.0,0.002825]
[1730148758418,1.09153346,69530.0,69529.0,0.002825]
[1730148760448,1.09353346,69530.0,69529.0,0.002825]
[1730148762352,1.09153346,69530.0,69529.0,0.002825]
[1730148763675,1.10228973,69530.0,69529.0,0.002825]
[1730148765379,1.07974779,69530.0,69529.0,0.002825]
[1730148765579,1.06899152,69530.0,69529.0,0.002825]
[1730148765822,1.06899152,69530.0,69512.0,0.000825]
[1730148765823,0.171837,69523.0,69512.0,0.000825]
[1730148766033,0.37959716,69523.0,69512.0,0.000825]
[1730148767495,0.37959685,69523.0,69512.0,0.000825]
[1730148767935,0.38059685,69523.0,69512.0,0.000825]
[1730148768160,0.38159685,69523.0,69512.0,0.000825]
[1730148768629,0.31717227,69523.0,69512.0,0.000825]
[1730148768843,0.32794135,69523.0,69512.0,0.000825]
[1730148769498,0.48656683,69523.0,69512.0,0.000825]
[1730148770199,0.48656764,69523.0,69512.0,0.000825]
[1730148770622,0.57246708,69523.0,69512.0,0.000825]
[1730148771469,0.48656764,69523.0,69512.0,0.000825]
[1730148772547,0.63881828,69523.0,69512.0,0.000825]
[1730148775690,0.53144398,69523.0,69512.0,0.000825]
[1730148776157,0.52644398,69523.0,69519.0,0.0831]
[1730148776421,0.40127059,69523.0,69519.0,0.0831]
[1730148776858,0.3905007,69523.0,69522.0,0.00520832]
[1730148777067,0.3905007,69523.0,69522.0,0.000825]
[1730148777498,0.4135007,69523.0,69522.0,0.000825]
[1730148777950,0.32746248,69523.0,69522.0,0.000825]